fUSD/lending_fUSD_20241107
["ID","MTS","AMOUNT","RATE_DAILY","PERIOD"]
[341580980,1731006686510,-1405.72,0.00029312,2]
[341580981,1731006686519,-1010.28,0.00029312,2]
[341580982,1731006686530,-500.0,0.00029312,2]
[341580983,1731006686539,-1474.85,0.00029312,2]
[341580984,1731006686550,-588.42,0.00029312,2]
[341580985,1731006686559,-500.0,0.00029312,2]
[341580986,1731006686570,-500.0,0.00029312,2]
[341580987,1731006686582,-500.0,0.00029312,2]
[341580988,1731006686591,-500.0,0.00029312,2]
[341580989,1731006686601,-500.0,0.00029312,2]
[341580990,1731006686610,-1559.87,0.00029312,2]
[341580991,1731006686620,-708.79,0.00029312,2]
[341580992,1731006686629,-1346.76,0.00029312,2]
[341580993,1731006686639,-1075.1,0.00029312,2]
[341580994,1731006686648,-500.0,0.00029312,2]
[341580995,1731006686659,-500.0,0.00029312,2]
[341580996,1731006686669,-690.67,0.00029312,2]
[341580997,1731006686679,-772.82,0.00029312,2]
[341580998,1731006686688,-500.0,0.00029312,2]
[341580999,1731006686697,-500.0,0.00029312,2]
[341581000,1731006686706,-815.4,0.00029312,2]
[341581001,1731006686715,-671.17,0.00029312,2]
[341581002,1731006686727,-539.78,0.00029312,2]
[341581003,1731006686736,-553.21,0.00029312,2]
[341581004,1731006686746,-601.53,0.00029312,2]
[341581005,1731006686755,-500.0,0.00029312,2]
[341581006,1731006686765,-500.0,0.00029312,2]
[341581007,1731006686774,-500.0,0.00029312,2]
[341581008,1731006686783,-778.48,0.00029312,2]
[341581009,1731006686793,-500.0,0.00029312,2]
[341581010,1731006686803,-500.0,0.00029312,2]
[341581011,1731006686813,-986.18,0.00029312,2]
[341581012,1731006686822,-925.38,0.00029312,2]
[341581013,1731006686832,-500.0,0.00029312,2]
[341581014,1731006686840,-849.38,0.00029312,2]
[341581015,1731006686849,-884.51,0.00029312,2]
[341581016,1731006686858,-1452.1,0.00029312,2]
[341581017,1731006686867,-500.0,0.00029312,2]
[341581018,1731006686876,-1021.71,0.00029312,2]
[341581019,1731006686885,-795.12,0.00029312,2]
[341581020,1731006686894,-500.0,0.00029312,2]
[341581021,1731006686904,-500.0,0.00029312,2]
[341581022,1731006686913,-946.45,0.00029312,2]
[341581023,1731006686922,-559.8,0.00029312,2]
[341581024,1731006686931,-500.0,0.00029312,2]
[341581025,1731006686941,-500.0,0.00029312,2]
[341581026,1731006686949,-313.71,0.00029312,2]
[341581027,1731006686959,-499.67241833,0.00029312,2]
[341581028,1731006686968,-567.63,0.00029312,2]
[341581029,1731006686977,-861.73,0.00029312,2]
[341581030,1731006686986,-500.0,0.00029312,2]
[341581031,1731006686995,-1541.33,0.00029312,2]
[341581032,1731006687004,-1203.52,0.00029312,2]
[341581033,1731006687013,-151.0,0.00029312,7]
[341581034,1731006687022,-893.94,0.00029312,2]
[341581035,1731006687031,-509.1118888,0.00029312,2]
[341581036,1731006687041,-500.0,0.00029312,2]
[341581037,1731006687051,-500.0,0.00029312,2]
[341581038,1731006687060,-564.17,0.00029312,2]
[341581039,1731006687069,-875.63,0.00029312,2]
[341581040,1731006687078,-1115.47,0.00029312,2]
[341581041,1731006687087,-500.0,0.00029312,2]
[341581042,1731006687096,-625.8,0.00029312,2]
[341581043,1731006687105,-1251.93,0.00029312,2]
[341581044,1731006687114,-170.801987,0.00029312,7]
[341581045,1731006687124,-954.67,0.00029312,2]
[341581046,1731006687133,-170.801987,0.00029312,7]
[341581047,1731006687142,-742.87,0.00029312,2]
[341581048,1731006687151,-500.0,0.00029312,2]
[341581049,1731006687161,-1179.63,0.00029312,2]
[341581050,1731006687170,-1413.66,0.00029312,2]
[341581051,1731006687180,-699.24,0.00029312,2]
[341581052,1731006687190,-925.92,0.00029312,2]
[341581053,1731006687199,-576.78,0.00029312,2]
[341581054,1731006687207,-1328.46,0.00029312,2]
[341581055,1731006687216,-642.75,0.00029312,2]
[341581056,1731006687225,-1064.03,0.00029312,2]
[341581057,1731006687234,-500.0,0.00029312,2]
[341581058,1731006687244,-504.18,0.00029312,2]
[341581059,1731006687254,-816.77,0.00029312,2]
[341581060,1731006687262,-835.37,0.00029312,2]
[341581061,1731006687271,-500.0,0.00029312,2]
[341581062,1731006687280,-1231.86,0.00029312,2]
[341581063,1731006687289,-1206.38,0.00029312,2]
[341581064,1731006687301,-833.23,0.00029312,2]
[341581065,1731006687309,-1475.12,0.00029312,2]
[341581066,1731006687319,-972.6,0.00029312,2]
[341581067,1731006687328,-500.0,0.00029312,2]
[341581068,1731006687337,-678.17,0.00029312,2]
[341581069,1731006687346,-500.0,0.00029312,2]
[341581070,1731006687355,-500.0,0.00029312,2]
[341581071,1731006687364,-2570.94,0.00029312,2]
[341581072,1731006687373,-1229.48,0.00029312,2]
[341581073,1731006687382,-896.88,0.00029312,2]
[341581074,1731006687392,-500.0,0.00029312,2]
[341581075,1731006687401,-961.1,0.00029312,2]
[341581076,1731006687411,-500.0,0.00029312,2]
[341581077,1731006687420,-1463.27,0.00029312,2]
[341581078,1731006687429,-496.246228,0.00029312,7]
[341581079,1731006687439,-3143.16,0.00029312,2]
[341581080,1731006687452,-500.0,0.00029312,2]
[341581081,1731006687462,-496.246228,0.00029312,7]
[341581082,1731006687471,-500.0,0.00029312,2]
[341581083,1731006687480,-726.47,0.00029312,2]
[341581084,1731006687489,-500.0,0.00029312,2]
[341581085,1731006687498,-500.0,0.00029312,2]
[341581086,1731006687508,-4690.82,0.00029312,2]
[341581087,1731006687518,-550.48,0.00029312,2]
[341581088,1731006687528,-500.0,0.00029312,2]
[341581089,1731006687537,-190.612709,0.00029312,7]
[341581090,1731006687550,-2121.04,0.00029312,2]
[341581091,1731006687559,-500.0,0.00029312,2]
[341581092,1731006687569,-190.612709,0.00029312,7]
[341581093,1731006687582,-2520.06,0.00029312,2]
[341581094,1731006687591,-4252.172922,0.00029312,7]
[341581095,1731006687602,-500.0,0.00029312,2]
[341581096,1731006687612,-500.0,0.00029312,2]
[341581097,1731006687623,-1085.49,0.00029312,2]
[341581098,1731006687632,-880.83,0.00029312,2]
[341581099,1731006687644,-500.0,0.00029312,2]
[341581100,1731006687653,-500.0,0.00029312,2]
[341581101,1731006687664,-151.0,0.00029312,7]
[341581102,1731006687674,-500.0,0.00029312,2]
[341581103,1731006687684,-943.13,0.00029312,2]
[341581104,1731006687693,-500.0,0.00029312,2]
[341581105,1731006687703,-960.56,0.00029312,2]
[341581106,1731006687713,-775.37,0.00029312,2]
[341581107,1731006687727,-500.0,0.00029312,2]
[341581108,1731006687737,-1421.51,0.00029312,2]
[341581109,1731006687747,-500.0,0.00029312,2]
[341581110,1731006687757,-500.0,0.00029312,2]
[341581111,1731006687767,-509.21404682,0.00029312,2]
[341581112,1731006687778,-151.0,0.00029312,7]
[341581113,1731006687788,-500.0,0.00029312,2]
[341581114,1731006687799,-1153.57,0.00029312,2]
[341581115,1731006687809,-500.0,0.00029312,2]
[341581116,1731006687818,-604.83,0.00029312,2]
[341581117,1731006687828,-569.26,0.00029312,2]
[341581118,1731006687837,-618.14018858,0.00029312,2]
[341581119,1731006687847,-151.0,0.00029312,7]
[341581120,1731006687856,-500.0,0.00029312,2]
[341581121,1731006687867,-500.0,0.00029312,2]
[341581122,1731006687876,-500.0,0.00029312,2]
[341581123,1731006687887,-645.83,0.00029312,2]
[341581124,1731006687898,-500.0,0.00029312,2]
[341581125,1731006687908,-779.11,0.00029312,2]
[341581126,1731006687918,-500.0,0.00029312,2]
[341581127,1731006687927,-599.12,0.00029312,2]
[341581128,1731006687937,-500.0,0.00029312,2]
[341581129,1731006687948,-1042.79,0.00029312,2]
[341581130,1731006687958,-500.0,0.00029312,2]
[341581131,1731006687968,-815.39,0.00029312,2]
[341581132,1731006687978,-500.0,0.00029312,2]
[341581133,1731006687988,-1276.42,0.00029312,2]
[341581134,1731006687998,-1160.45,0.00029312,2]
[341581135,1731006688008,-500.0,0.00029312,2]
[341581136,1731006688018,-500.0,0.00029312,2]
[341581137,1731006688028,-991.95,0.00029312,2]
[341581138,1731006688038,-388.98385734,0.00029312,2]
[341581139,1731006688051,-417.27307691,0.00029312,2]
[341581140,1731006688065,-500.0,0.00029312,2]
[341581141,1731006688075,-2096.29,0.00029312,2]
[341581142,1731006688085,-1112.02,0.00029312,2]
[341581143,1731006688095,-546.77,0.00029312,2]
[341581144,1731006688104,-507.01,0.00029312,2]
[341581145,1731006688114,-500.0,0.00029312,2]
[341581146,1731006688124,-1299.27,0.00029312,2]
[341581147,1731006688134,-1440.6,0.00029312,2]
[341581148,1731006688145,-634.36,0.00029312,2]
[341581149,1731006688155,-1237.47,0.00029312,2]
[341581150,1731006688164,-500.0,0.00029312,2]
[341581151,1731006688175,-1400.48,0.00029312,2]
[341581152,1731006688185,-880.63,0.00029312,2]
[341581153,1731006688196,-1189.25,0.00029312,2]
[341581154,1731006688206,-500.0,0.00029312,2]
[341581155,1731006688216,-167.049241,0.00029312,7]
[341581156,1731006688226,-500.0,0.00029312,2]
[341581157,1731006688237,-963.961596,0.00029312,7]
[341581158,1731006688248,-963.961596,0.00029312,7]
[341581159,1731006688258,-500.0,0.00029312,2]
[341581160,1731006688268,-740.28,0.00029312,2]
[341581161,1731006688279,-500.0,0.00029312,2]
[341581162,1731006688289,-500.0,0.00029312,2]
[341581163,1731006688303,-161.755498,0.00029312,7]
[341581164,1731006688312,-151.0,0.00029312,7]
[341581165,1731006688323,-500.0,0.00029312,2]
[341581166,1731006688333,-860.23,0.00029312,2]
[341581167,1731006688343,-500.0,0.00029312,2]
[341581168,1731006688353,-500.0,0.00029312,2]
[341581169,1731006688363,-733.25,0.00029312,2]
[341581170,1731006688373,-500.0,0.00029312,2]
[341581171,1731006688383,-2079.61,0.00029312,2]
[341581172,1731006688392,-500.0,0.00029312,2]
[341581173,1731006688402,-1402.17,0.00029312,2]
[341581174,1731006688414,-919.14,0.00029312,2]
[341581175,1731006688423,-564.55,0.00029312,2]
[341581176,1731006688433,-500.0,0.00029312,2]
[341581177,1731006688443,-500.0,0.00029312,2]
[341581178,1731006688453,-500.0,0.00029312,2]
[341581179,1731006688462,-500.0,0.00029312,2]
[341581180,1731006688473,-500.0,0.00029312,2]
[341581181,1731006688483,-1687.74,0.00029312,2]
[341581182,1731006688493,-500.0,0.00029312,2]
[341581183,1731006688503,-151.0,0.00029312,7]
[341581184,1731006688513,-869.33,0.00029312,2]
[341581185,1731006688523,-6466.8,0.00029312,2]
[341581186,1731006688534,-151.0,0.00029312,7]
[341581187,1731006688544,-500.0,0.00029312,2]
[341581188,1731006688555,-500.0,0.00029312,2]
[341581189,1731006688565,-500.0,0.00029312,2]
[341581190,1731006688578,-775.1,0.00029312,2]
[341581191,1731006688588,-1751.76,0.00029312,2]
[341581192,1731006688598,-805.76,0.00029312,2]
[341581193,1731006688608,-717.44,0.00029312,2]
[341581194,1731006688618,-500.0,0.00029312,2]
[341581195,1731006688629,-719.7,0.00029312,2]
[341581196,1731006688639,-151.0,0.00029313,7]
[341581197,1731006688653,-279.952967,0.00029313,7]
[341581198,1731006688664,-279.952967,0.00029313,7]
[341581199,1731006688673,-634.28,0.00029313,2]
[341581200,1731006688683,-500.0,0.00029313,2]
[341581201,1731006688693,-500.0,0.00029313,2]
[341581202,1731006688704,-619.42,0.00029313,2]
[341581203,1731006688713,-500.0,0.00029313,2]
[341581204,1731006688724,-500.0,0.00029313,2]
[341581205,1731006688734,-500.0,0.00029313,2]
[341581206,1731006688744,-500.0,0.00029313,2]
[341581207,1731006688755,-500.0,0.00029313,2]
[341581208,1731006688765,-500.0,0.00029313,2]
[341581209,1731006688776,-500.0,0.00029313,2]
[341581210,1731006688786,-500.0,0.00029313,2]
[341581211,1731006688795,-666.11,0.00029313,2]
[341581212,1731006688807,-500.0,0.00029313,2]
[341581213,1731006688818,-500.0,0.00029313,2]
[341581214,1731006688828,-500.0,0.00029313,2]
[341581215,1731006688837,-500.0,0.00029313,2]
[341581216,1731006688847,-500.0,0.00029313,2]
[341581217,1731006688857,-236.28588579,0.00029313,2]
[341581218,1731006688867,-500.0,0.00029313,2]
[341581219,1731006688876,-500.0,0.00029313,2]
[341581220,1731006688886,-500.0,0.00029313,2]
[341581221,1731006688896,-684.31,0.00029313,2]
[341581222,1731006688906,-683.37,0.00029313,2]
[341581223,1731006688916,-1140.84,0.00029313,2]
[341581224,1731006688926,-500.0,0.00029313,2]
[341581225,1731006688936,-500.0,0.00029313,2]
[341581226,1731006688946,-500.0,0.00029313,2]
[341581227,1731006688957,-172.10839855,0.00029313,2]
[341581228,1731006688967,-594.1,0.00029313,2]
[341581229,1731006688976,-500.0,0.00029313,2]
[341581230,1731006688987,-774.5,0.00029313,2]
[341581231,1731006688997,-500.0,0.00029313,2]
[341581232,1731006689007,-549.54675119,0.00029313,2]
[341581233,1731006689018,-500.0,0.00029313,2]
[341581234,1731006689028,-568.18,0.00029313,2]
[341581235,1731006689038,-514.39,0.00029313,2]
[341581236,1731006689048,-500.0,0.00029313,2]
[341581237,1731006689059,-500.0,0.00029313,2]
[341581238,1731006689069,-1732.62,0.00029313,2]
[341581239,1731006689081,-500.0,0.00029313,2]
[341581240,1731006689091,-1366.43,0.00029313,2]
[341581241,1731006689101,-500.0,0.00029313,2]
[341581242,1731006689111,-500.0,0.00029313,2]
[341581243,1731006689122,-625.64,0.00029313,2]
[341581244,1731006689131,-500.0,0.00029313,2]
[341581245,1731006689141,-737.26,0.00029313,2]
[341581246,1731006689151,-255.936207,0.00029313,7]
[341581247,1731006689160,-151.0,0.00029313,7]
[341581248,1731006689170,-255.936207,0.00029313,7]
[341581249,1731006689180,-589.04,0.00029313,2]
[341581250,1731006689190,-500.0,0.00029313,2]
[341581251,1731006689200,-500.0,0.00029313,2]
[341581252,1731006689210,-500.0,0.00029313,2]
[341581253,1731006689220,-151.0,0.00029313,7]
[341581254,1731006689230,-198.299841,0.00029313,7]
[341581255,1731006689240,-151.0,0.00029313,7]
[341581256,1731006689250,-198.299841,0.00029313,7]
[341581257,1731006689261,-500.0,0.00029313,2]
[341581258,1731006689271,-500.0,0.00029313,2]
[341581259,1731006689282,-500.0,0.00029313,2]
[341581260,1731006689292,-500.0,0.00029313,2]
[341581261,1731006689303,-151.0,0.00029313,7]
[341581262,1731006689313,-232.715568,0.00029313,7]
[341581263,1731006689323,-768.44,0.00029313,2]
[341581264,1731006689333,-500.0,0.00029313,2]
[341581265,1731006689343,-500.0,0.00029313,2]
[341581266,1731006689353,-500.0,0.00029313,2]
[341581267,1731006689363,-914.32,0.00029313,2]
[341581268,1731006689373,-547.53,0.00029313,2]
[341581269,1731006689382,-500.0,0.00029313,2]
[341581270,1731006689393,-500.0,0.00029313,2]
[341581271,1731006689403,-3441.125622,0.00029313,7]
[341581272,1731006689414,-3441.125622,0.00029313,7]
[341581273,1731006689424,-151.0,0.00029313,7]
[341581274,1731006689434,-151.0,0.00029313,7]
[341581275,1731006689444,-235.977363,0.00029313,7]
[341581276,1731006689454,-235.977363,0.00029313,7]
[341581277,1731006689464,-151.0,0.00029313,7]
[341581278,1731006689474,-963.961596,0.00029313,7]
[341581279,1731006689483,-963.961596,0.00029313,7]
[341581280,1731006689493,-165.51486,0.00029313,7]
[341581281,1731006689503,-165.51486,0.00029313,7]
[341581282,1731006689513,-151.0,0.00029313,7]
[341581283,1731006689523,-151.0,0.00029313,7]
[341581284,1731006689532,-151.0,0.00029313,7]
[341581285,1731006689542,-936856.42,0.00029339,7]
[341581286,1731006689553,-232.356287,0.00029367,7]
[341581287,1731006689563,-232.356287,0.00029367,7]
[341581288,1731006689576,-198.473013,0.00029367,7]
[341581289,1731006689586,-198.473013,0.00029367,7]
[341581290,1731006689596,-151.0,0.00029367,7]
[341581291,1731006689606,-151.0,0.00029367,7]
[341581292,1731006689616,-210.11042679,0.00029367,2]
[341581293,1731006689626,-266.747638,0.00029367,7]
[341581294,1731006689636,-266.747638,0.00029367,7]
[341581295,1731006689646,-752.59,0.00029367,2]
[341581296,1731006689658,-1964.6,0.00029367,2]
[341581297,1731006689668,-151.0,0.00029367,7]
[341581298,1731006689678,-151.0,0.00029367,7]
[341581299,1731006689688,-3277.23,0.00029367,2]
[341581300,1731006689698,-874.54,0.00029367,2]
[341581301,1731006689708,-500.0,0.00029367,2]
[341581302,1731006689718,-500.0,0.00029367,2]
[341581303,1731006689729,-500.0,0.00029367,2]
[341581304,1731006689739,-1066.81,0.00029367,2]
[341581305,1731006689748,-754.13,0.00029367,2]
[341581306,1731006689759,-500.0,0.00029367,2]
[341581307,1731006689770,-697.97,0.00029367,2]
[341581308,1731006689780,-356.035373,0.00029367,7]
[341581309,1731006689790,-356.035373,0.00029367,7]
[341581310,1731006689801,-743.72,0.00029367,2]
[341581311,1731006689810,-500.0,0.00029367,2]
[341581312,1731006689820,-873.13,0.00029367,2]
[341581313,1731006689830,-1684.47,0.00029367,2]
[341581314,1731006689841,-1501.89,0.00029367,2]
[341581315,1731006689851,-1855.13,0.00029367,2]
[341581316,1731006689861,-1577.23,0.00029367,2]
[341581317,1731006689871,-500.0,0.00029367,2]
[341581318,1731006689881,-1030.59,0.00029367,2]
[341581319,1731006689891,-1130.13,0.00029367,2]
[341581320,1731006689901,-704.45,0.00029367,2]
[341581321,1731006689911,-920.53,0.00029367,2]
[341581322,1731006689921,-1276.51,0.00029367,2]
[341581323,1731006689931,-1518.09,0.00029367,2]
[341581324,1731006690245,-3010.52,0.00029367,2]
[341581325,1731006690270,-2199.01,0.00029367,2]
[341581326,1731006690281,-1048.53,0.00029367,2]
[341581327,1731006690291,-500.0,0.00029367,2]
[341581328,1731006690300,-1121.9,0.00029367,2]
[341581329,1731006690314,-500.0,0.00029367,2]
[341581330,1731006690324,-1772.55,0.00029367,2]
[341581331,1731006690334,-715.44,0.00029367,2]
[341581332,1731006690344,-722.96,0.00029367,2]
[341581333,1731006690353,-2326.17,0.00029367,2]
[341581334,1731006690363,-500.0,0.00029367,2]
[341581335,1731006690373,-500.0,0.00029367,2]
[341581336,1731006690383,-901.99,0.00029367,2]
[341581337,1731006690392,-500.0,0.00029367,2]
[341581338,1731006690402,-1466.36,0.00029367,2]
[341581339,1731006690411,-1292.34,0.00029367,2]
[341581340,1731006690421,-500.0,0.00029367,2]
[341581341,1731006690431,-825.64,0.00029367,2]
[341581342,1731006690440,-665.37,0.00029367,2]
[341581343,1731006690450,-1050.72,0.00029367,2]
[341581344,1731006690460,-171.13,0.00029368,22]
[341581345,1731006690469,-151.0,0.00029373,7]
[341581346,1731006690479,-151.0,0.00029373,7]
[341581347,1731006690488,-1000.0,0.000294,2]
[341581348,1731006690498,-1144.73738126,0.00029419,2]
[341581349,1731006690508,-2169.172,0.00029421,22]
[341581350,1731006690518,-600.0,0.00029425,2]
[341581351,1731006690527,-784.45563377,0.0002943,2]
[341581352,1731006690536,-150.0,0.00029445,2]
[341581353,1731006690547,-776.25940434,0.00029454,2]
[341581354,1731006690560,-169.76846182,0.00029454,2]
[341581355,1731006690572,-150.0,0.00029477,2]
[341581356,1731006690583,-1500.0,0.00029478,2]
[341581357,1731006690593,-500.0,0.000295,10]
[341581358,1731006690603,-1000.0,0.000295,2]
[341581359,1731006690614,-3775.7178596,0.00029532,2]
[341581360,1731006690625,-18584.3399981,0.00029532,2]
[341581361,1731006690634,-1314.6606423,0.00029532,2]
[341581362,1731006690644,-500.0,0.00029537,7]
[341581363,1731006690654,-244.0981019,0.00029537,2]
[341581364,1731006690664,-200.0,0.00029537,2]
[341581365,1731006690674,-2000.0,0.00029537,2]
[341581366,1731006690683,-200.0,0.00029537,2]
[341581367,1731006690693,-171.30208726,0.00029573,5]
[341581368,1731006690703,-500.0,0.00029584,2]
[341581369,1731006690713,-6528.81,0.00029584,2]
[341581370,1731006690724,-504.3,0.00029584,2]
[341581371,1731006690734,-977.61,0.00029584,2]
[341581372,1731006690744,-13883.55,0.00029584,2]
[341581373,1731006690754,-865.8,0.00029584,2]
[341581374,1731006690763,-1147.5,0.00029584,2]
[341581375,1731006690773,-500.0,0.00029584,2]
[341581376,1731006690782,-936.73,0.00029584,2]
[341581377,1731006690792,-2337.67,0.00029584,2]
[341581378,1731006690804,-2369.09,0.00029584,2]
[341581379,1731006690813,-500.0,0.00029584,2]
[341581380,1731006690822,-1548.35,0.00029584,2]
[341581381,1731006690831,-1962.15,0.00029584,2]
[341581382,1731006690840,-1445.99,0.00029584,2]
[341581383,1731006690849,-742.7,0.00029584,2]
[341581384,1731006690859,-970.12,0.00029584,2]
[341581385,1731006690869,-1161.63,0.00029584,2]
[341581386,1731006690879,-500.0,0.00029584,2]
[341581387,1731006690888,-638.35,0.00029584,2]
[341581388,1731006690897,-684.32,0.00029584,2]
[341581389,1731006690907,-500.0,0.00029584,2]
[341581390,1731006690916,-1478.55,0.00029584,2]
[341581391,1731006690925,-746.61,0.00029584,2]
[341581392,1731006690935,-2386.36,0.00029584,2]
[341581393,1731006690944,-1433.34,0.00029584,2]
[341581394,1731006690954,-1278.94,0.00029584,2]
[341581395,1731006690964,-3042.63,0.00029584,2]
[341581396,1731006690973,-916.61,0.00029584,2]
[341581397,1731006690983,-4289.58,0.00029584,2]
[341581398,1731006690993,-500.0,0.00029584,2]
[341581399,1731006691002,-159548.4944411,0.00029585,4]
[341581400,1731006691499,-1946.6,0.00029585,4]
[341581401,1731006693743,-66.93,0.00029037,2]
[341581402,1731006693755,-733.66,0.00029037,2]
[341581403,1731006693764,-105966.25199358,0.00029585,4]
[341581404,1731006693825,-402.8275,0.0002794,2]
[341581405,1731006693837,-97.1725,0.0002794,2]
[341581406,1731006693846,-2197.163338,0.00029585,4]
[341581407,1731006693857,-1352.07895192,0.00029585,4]
[341581408,1731006693868,-2595.40584699,0.00029585,4]
[341581409,1731006694424,-500.0,0.00027941,2]
[341581410,1731006694434,-500.0,0.00027941,2]
[341581411,1731006694444,-500.0,0.00027941,2]
[341581412,1731006694454,-500.0,0.00027941,2]
[341581413,1731006694463,-293.077482,0.00027942,2]
[341581414,1731006694474,-206.922518,0.00027942,2]
[341581415,1731006694483,-500.0,0.00028214,2]
[341581416,1731006694492,-298.213325,0.00028215,2]
[341581417,1731006694501,-500.0,0.00028215,2]
[341581418,1731006694511,-500.0,0.00028215,2]
[341581419,1731006694520,-500.0,0.00028488,2]
[341581420,1731006694529,-500.0,0.00028489,2]
[341581421,1731006694540,-173.36,0.00028577,91]
[341581422,1731006694550,-500.0,0.00028762,2]
[341581423,1731006694564,-500.0,0.00028763,2]
[341581424,1731006694577,-500.0,0.00029036,2]
[341581425,1731006694587,-500.0,0.00029037,2]
[341581426,1731006694596,-500.0,0.0002931,2]
[341581427,1731006694609,-800.59,0.00029311,2]
[341581428,1731006694618,-500.0,0.00029311,2]
[341581429,1731006694629,-500.0,0.00029584,2]
[341581430,1731006694639,-17098.97941738,0.00029585,4]
[341581431,1731006694651,-61203.20000004,0.00029585,4]
[341581432,1731006694763,-500.0,0.00027942,2]
[341581433,1731006694773,-438.59149319,0.00029585,4]
[341581434,1731006705909,1184.43,0.00025999,2]
[341581436,1731006898022,152.04,0.00015342,2]
[341581438,1731007064089,197.9,0.000264,30]
[341581442,1731007183416,-181.52325,0.00020537,2]
[341581443,1731007183437,-155.83,0.00025543,2]
[341581444,1731007183457,-2237.9,0.00025683,2]
[341581445,1731007183479,-2237.9,0.00026095,2]
[341581446,1731007183498,-250.0,0.00026233,2]
[341581447,1731007183517,-2237.9,0.00026508,2]
[341581448,1731007183537,-155.83,0.00026552,2]
[341581449,1731007183556,-499.99,0.00026552,2]
[341581450,1731007183578,-227.46,0.00026758,2]
[341581451,1731007183598,-227.46,0.00026772,2]
[341581452,1731007183618,-227.46,0.00026786,2]
[341581453,1731007183638,-227.46,0.000268,2]
[341581454,1731007183660,-227.46,0.00026814,2]
[341581455,1731007183682,-227.46,0.00026828,2]
[341581456,1731007183703,-227.46,0.00026842,2]
[341581457,1731007183726,-227.46,0.00026857,2]
[341581458,1731007183758,-227.46,0.00026871,2]
[341581459,1731007183783,-227.46,0.00026885,2]
[341581460,1731007183807,-371.58,0.00026888,120]
[341581461,1731007183830,-227.46,0.00026899,2]
[341581462,1731007183851,-227.46,0.00026913,2]
[341581463,1731007183874,-2237.9,0.00026921,2]
[341581464,1731007183898,-150.04,0.00026925,2]
[341581465,1731007183922,-251.58,0.00026925,2]
[341581466,1731007183946,-227.46,0.00026927,2]
[341581467,1731007183968,-183.0,0.00026927,2]
[341581468,1731007183993,-227.46,0.00026941,2]
[341581469,1731007184019,-227.46,0.00026955,2]
[341581470,1731007184042,-250.0,0.00026965,2]
[341581471,1731007184067,-227.46,0.00026969,2]
[341581472,1731007184091,-227.46,0.00026983,2]
[341581473,1731007184116,-227.46,0.00026997,2]
[341581474,1731007184141,-227.46,0.00027011,2]
[341581475,1731007184176,-227.46,0.00027026,2]
[341581476,1731007184199,-2110.0,0.00027085,2]
[341581477,1731007184222,-1500.0,0.00027094,2]
[341581478,1731007184244,-2388.18,0.00027094,2]
[341581479,1731007184265,-482.31,0.00027108,2]
[341581480,1731007184287,-175.57,0.00027195,2]
[341581481,1731007184308,-172.45,0.0002722,2]
[341581482,1731007184330,-250.0,0.0002722,2]
[341581483,1731007184352,-2237.9,0.00027333,2]
[341581484,1731007184373,-748.57,0.00027365,2]